fUSD/lending_fUSD_20251212
["ID","MTS","AMOUNT","RATE_DAILY","PERIOD"]
[398381839,1765559668764,-1401.35,0.00043287,30]
[398381840,1765559668803,-1981.87413775,0.00043287,30]
[398381841,1765559668842,-500.0,0.00043287,30]
[398381842,1765559668881,-681.75,0.00043287,30]
[398381843,1765559668920,-500.0,0.00043287,30]
[398381844,1765559668958,-500.0,0.00043287,30]
[398381845,1765559668998,-710.84,0.00043287,30]
[398381846,1765559669039,-713.89,0.00043287,30]
[398381847,1765559669081,-809.28,0.00043287,30]
[398381848,1765559669121,-642.87,0.00043287,30]
[398381849,1765559669162,-644.63,0.00043287,30]
[398381850,1765559669205,-602.79886653,0.00043287,30]
[398381851,1765559669247,-500.0,0.00043287,30]
[398381852,1765559669287,-563.19,0.00043287,30]
[398381853,1765559669331,-1307.39,0.00043287,30]
[398381854,1765559669376,-500.0,0.00043287,30]
[398381855,1765559669422,-580.19,0.00043287,30]
[398381856,1765559669467,-625.15975565,0.00043287,30]
[398381857,1765559669509,-615.99,0.00043287,30]
[398381858,1765559669551,-298.36565758,0.00043287,30]
[398381859,1765559669593,-500.0,0.00043287,30]
[398381860,1765559669635,-500.0,0.00043287,30]
[398381861,1765559669675,-629.98,0.00043287,30]
[398381862,1765559669714,-589.28,0.00043287,30]
[398381863,1765559669754,-511.5,0.00043287,30]
[398381864,1765559669798,-504.49,0.00043287,30]
[398381865,1765559669839,-665.47,0.00043287,30]
[398381866,1765559669879,-500.0,0.00043287,30]
[398381867,1765559669919,-351.38602038,0.00043287,30]
[398381868,1765559669958,-500.0,0.00043287,30]
[398381869,1765559670004,-500.0,0.00043287,30]
[398381870,1765559670047,-796.43,0.00043287,30]
[398381871,1765559670091,-500.0,0.00043287,30]
[398381872,1765559670135,-667.67,0.00043287,30]
[398381873,1765559670180,-535.37,0.00043287,30]
[398381874,1765559670224,-500.0,0.00043287,30]
[398381875,1765559670265,-620.9,0.00043287,30]
[398381876,1765559670307,-642.19,0.00043287,30]
[398381877,1765559670353,-500.0,0.00043287,30]
[398381878,1765559670396,-974.75,0.00043287,30]
[398381879,1765559670559,-561.38,0.00043287,30]
[398381880,1765559670608,-507.61,0.00043287,30]
[398381881,1765559670651,-537.82750391,0.00043287,30]
[398381882,1765559670693,-512.36,0.00043287,30]
[398381883,1765559670735,-500.0,0.00043287,30]
[398381884,1765559670775,-834.91,0.00043287,30]
[398381885,1765559670813,-500.0,0.00043287,30]
[398381886,1765559670852,-500.0,0.00043287,30]
[398381887,1765559670896,-1100.0,0.000433,60]
[398381888,1765559670936,-1500.0,0.000433,60]
[398381889,1765559670977,-4858.2,0.000433,120]
[398381890,1765559671022,-150.4,0.00043311,120]
[398381891,1765559671067,-155.64,0.00043349,120]
[398381892,1765559671108,-358.37905614,0.000434,30]
[398381893,1765559671155,-150.44566561,0.00043411,120]
[398381894,1765559671201,-155.64,0.00043449,120]
[398381895,1765559671246,-2057.07004609,0.00043481,30]
[398381896,1765559671290,-766.63,0.000435,120]
[398381897,1765559671334,-500.0,0.000435,120]
[398381898,1765559671379,-155.64,0.00043549,120]
[398381899,1765559671424,-201.32555251,0.00043561,30]
[398381900,1765559671472,-1401.35,0.00043561,30]
[398381901,1765559671515,-1981.87413775,0.00043561,30]
[398381902,1765559671556,-500.0,0.00043561,30]
[398381903,1765559671599,-681.75,0.00043561,30]
[398381904,1765559671642,-383.75617312,0.00043561,30]
[398381905,1765559671683,-417.28177586,0.00043561,30]
[398381906,1765559671725,-710.84,0.00043561,30]
[398381907,1765559671765,-713.89,0.00043561,30]
[398381908,1765559671806,-809.28,0.00043561,30]
[398381909,1765559671844,-642.87,0.00043561,30]
[398381910,1765559671885,-644.63,0.00043561,30]
[398381911,1765559671922,-500.0,0.00043561,30]
[398381912,1765559671964,-563.19,0.00043561,30]
[398381913,1765559672013,-1307.39,0.00043561,30]
[398381914,1765559672058,-571.07864821,0.00043561,30]
[398381915,1765559672100,-580.19,0.00043561,30]
[398381916,1765559672144,-615.99,0.00043561,30]
[398381917,1765559672188,-500.0,0.00043561,30]
[398381918,1765559672236,-500.0,0.00043561,30]
[398381919,1765559672281,-629.98,0.00043561,30]
[398381920,1765559672326,-589.28,0.00043561,30]
[398381921,1765559672370,-511.5,0.00043561,30]
[398381922,1765559672413,-504.49,0.00043561,30]
[398381923,1765559672458,-665.47,0.00043561,30]
[398381924,1765559672502,-500.0,0.00043561,30]
[398381925,1765559672544,-329.04949398,0.00043561,30]
[398381926,1765559672587,-500.0,0.00043561,30]
[398381927,1765559672630,-796.43,0.00043561,30]
[398381928,1765559672672,-485.26189127,0.00043561,30]
[398381929,1765559672714,-667.67,0.00043561,30]
[398381930,1765559672757,-535.37,0.00043561,30]
[398381931,1765559672797,-500.0,0.00043561,30]
[398381932,1765559672838,-620.9,0.00043561,30]
[398381933,1765559672881,-642.19,0.00043561,30]
[398381934,1765559672924,-229.03144651,0.00043561,30]
[398381935,1765559672967,-974.75,0.00043561,30]
[398381936,1765559673015,-561.38,0.00043561,30]
[398381937,1765559673060,-507.61,0.00043561,30]
[398381938,1765559673106,-512.36,0.00043561,30]
[398381939,1765559673151,-500.0,0.00043561,30]
[398381940,1765559673199,-834.91,0.00043561,30]
[398381941,1765559673247,-454.03345013,0.00043561,30]
[398381942,1765559673292,-588.86664847,0.00043561,30]
[398381943,1765559673342,-155.64,0.00043649,120]
[398381944,1765559673389,-214.56969249,0.00043664,120]
[398381945,1765559673436,-5468.91976498,0.000437,120]
[398381946,1765559673483,-2000.0,0.00043702,120]
[398381947,1765559673542,-155.64,0.00043749,120]
[398381948,1765559673590,-500.64696078,0.000438,30]
[398381949,1765559673648,-5238.37103319,0.000438,120]
[398381950,1765559673695,-1401.35,0.00043835,120]
[398381951,1765559673754,-1981.87413775,0.00043835,60]
[398381952,1765559673800,-230.39263018,0.00043835,120]
[398381953,1765559673844,-681.75,0.00043835,120]
[398381954,1765559673888,-710.84,0.00043835,120]
[398381955,1765559673931,-713.89,0.00043835,120]
[398381956,1765559673974,-809.28,0.00043835,120]
[398381957,1765559674020,-642.87,0.00043835,120]
[398381958,1765559674063,-644.63,0.00043835,120]
[398381959,1765559674105,-466.01053413,0.00043835,120]
[398381960,1765559674151,-563.19,0.00043835,120]
[398381961,1765559674201,-1307.39,0.00043835,120]
[398381962,1765559674247,-615.99,0.00043835,120]
[398381963,1765559674290,-580.19,0.00043835,120]
[398381964,1765559674651,-500.0,0.00043835,120]
[398381965,1765559674697,-500.0,0.00043835,120]
[398381966,1765559674739,-629.98,0.00043835,120]
[398381967,1765559674780,-589.28,0.00043835,30]
[398381968,1765559674823,-511.5,0.00043835,120]
[398381969,1765559674863,-504.49,0.00043835,120]
[398381970,1765559674901,-665.47,0.00043835,120]
[398381971,1765559674941,-500.0,0.00043835,120]
[398381972,1765559674983,-301.07490149,0.00043835,120]
[398381973,1765559675026,-796.43,0.00043835,120]
[398381974,1765559675067,-667.67,0.00043835,120]
[398381975,1765559675110,-535.37,0.00043835,120]
[398381976,1765559675156,-355.34468327,0.00043835,120]
[398381977,1765559675198,-620.9,0.00043835,120]
[398381978,1765559675239,-642.19,0.00043835,120]
[398381979,1765559675277,-974.75,0.00043835,120]
[398381980,1765559675318,-561.38,0.00043835,60]
[398381981,1765559675361,-507.61,0.00043835,120]
[398381982,1765559675403,-512.36,0.00043835,120]
[398381983,1765559675445,-480.19828125,0.00043835,120]
[398381984,1765559675484,-834.91,0.00043835,120]
[398381985,1765559675530,-1500.0,0.00043848,60]
[398381986,1765559675571,-155.64,0.00043849,120]
[398381987,1765559675609,-155.64,0.00043949,120]
[398381988,1765559675645,-200.0,0.00043977,120]
[398381989,1765559675682,-787.99,0.00043997,120]
[398381990,1765559675719,-191.0,0.00044,120]
[398381991,1765559675757,-506.38314807,0.00044,120]
[398381992,1765559675795,-500.0,0.00044,120]
[398381993,1765559675836,-364.1434454,0.00044,120]
[398381994,1765559675873,-300.0,0.00044,120]
[398381995,1765559675911,-743.0,0.00044,60]
[398381996,1765559675947,-3649.03463222,0.00044,120]
[398381997,1765559675989,-3584.68536658,0.00044,120]
[398381998,1765559676028,-161.0,0.00044,120]
[398381999,1765559676068,-1263.91804735,0.00044,120]
[398382000,1765559676109,-500.0,0.00044,120]
[398382001,1765559676151,-1000.0,0.00044,120]
[398382002,1765559676194,-4336.9037803,0.00044,120]
[398382003,1765559676238,-551.441694,0.00044,57]
[398382004,1765559676279,-278.87729387,0.00044,60]
[398382005,1765559676319,-155.64,0.00044049,120]
[398382006,1765559676361,-1401.35,0.00044109,120]
[398382007,1765559676404,-1981.87413775,0.00044109,60]
[398382008,1765559676446,-681.75,0.00044109,120]
[398382009,1765559676489,-710.84,0.00044109,120]
[398382010,1765559676528,-713.89,0.00044109,120]
[398382011,1765559676567,-809.28,0.00044109,120]
[398382012,1765559676606,-642.87,0.00044109,120]
[398382013,1765559676643,-644.63,0.00044109,120]
[398382014,1765559676683,-563.19,0.00044109,120]
[398382015,1765559676720,-1307.39,0.00044109,120]
[398382016,1765559676755,-615.99,0.00044109,120]
[398382017,1765559676793,-580.19,0.00044109,120]
[398382018,1765559676828,-500.0,0.00044109,120]
[398382019,1765559676863,-500.0,0.00044109,120]
[398382020,1765559676905,-629.98,0.00044109,120]
[398382021,1765559676942,-589.28,0.00044109,30]
[398382022,1765559676982,-511.5,0.00044109,120]
[398382023,1765559677019,-504.49,0.00044109,120]
[398382024,1765559677056,-665.47,0.00044109,120]
[398382025,1765559677094,-423.77686228,0.00044109,120]
[398382026,1765559677139,-796.43,0.00044109,120]
[398382027,1765559677181,-667.67,0.00044109,120]
[398382028,1765559677224,-535.37,0.00044109,120]
[398382029,1765559677265,-620.9,0.00044109,120]
[398382030,1765559677393,-642.19,0.00044109,120]
[398382031,1765559677441,-974.75,0.00044109,120]
[398382032,1765559677484,-561.38,0.00044109,60]
[398382033,1765559677522,-507.61,0.00044109,120]
[398382034,1765559677559,-512.36,0.00044109,120]
[398382035,1765559677594,-834.91,0.00044109,120]
[398382036,1765559677630,-500.0,0.00044122,60]
[398382037,1765559677666,-155.64,0.00044149,120]
[398382038,1765559677703,-155.64,0.00044249,120]
[398382039,1765559677738,-158.70701541,0.0004425,120]
[398382040,1765559677774,-155.64,0.00044349,120]
[398382041,1765559677809,-1401.35,0.00044383,120]
[398382042,1765559677844,-1981.87413775,0.00044383,60]
[398382043,1765559677881,-681.75,0.00044383,120]
[398382044,1765559677916,-710.84,0.00044383,120]
[398382045,1765559677952,-713.89,0.00044383,120]
[398382046,1765559677991,-809.28,0.00044383,120]
[398382047,1765559678031,-642.87,0.00044383,120]
[398382048,1765559678070,-644.63,0.00044383,120]
[398382049,1765559678110,-563.19,0.00044383,120]
[398382050,1765559678151,-1307.39,0.00044383,120]
[398382051,1765559678193,-615.99,0.00044383,120]
[398382052,1765559678237,-580.19,0.00044383,120]
[398382053,1765559678277,-500.0,0.00044383,120]
[398382054,1765559678317,-500.0,0.00044383,120]
[398382055,1765559678361,-629.98,0.00044383,120]
[398382056,1765559678404,-589.28,0.00044383,30]
[398382057,1765559678446,-511.5,0.00044383,120]
[398382058,1765559678487,-504.49,0.00044383,120]
[398382059,1765559678532,-665.47,0.00044383,120]
[398382060,1765559678572,-796.43,0.00044383,120]
[398382061,1765559678613,-667.67,0.00044383,120]
[398382062,1765559678654,-535.37,0.00044383,120]
[398382063,1765559678694,-620.9,0.00044383,120]
[398382064,1765559678733,-642.19,0.00044383,120]
[398382065,1765559678772,-974.75,0.00044383,120]
[398382066,1765559678809,-561.38,0.00044383,60]
[398382067,1765559678848,-507.61,0.00044383,120]
[398382068,1765559678886,-512.36,0.00044383,120]
[398382069,1765559678923,-834.91,0.00044383,120]
[398382070,1765559678962,-1100.0,0.00044396,60]
[398382071,1765559679007,-1176.9970226,0.000444,120]
[398382072,1765559679050,-155.64,0.00044449,120]
[398382073,1765559679096,-191.0,0.000445,120]
[398382074,1765559679142,-500.0,0.000445,120]
[398382075,1765559679188,-3333.78546322,0.000445,120]
[398382076,1765559679232,-161.0,0.000445,120]
[398382077,1765559679276,-155.64,0.00044549,120]
[398382078,1765559679319,-27014.2536809,0.00044593,120]
[398382079,1765559679361,-1098.0,0.00044602,30]
[398382080,1765559679404,-155.64,0.00044649,120]
[398382081,1765559679444,-1401.46571697,0.00044657,120]
[398382082,1765559679482,-1982.03821934,0.00044657,60]
[398382083,1765559679520,-681.79981641,0.00044657,120]
[398382084,1765559679558,-710.99988255,0.00044657,120]
[398382085,1765559679598,-714.11950534,0.00044657,120]
[398382086,1765559679638,-809.39151356,0.00044657,120]
[398382087,1765559679676,-642.97482429,0.00044657,120]
[398382088,1765559679714,-644.63,0.00044657,120]
[398382089,1765559679751,-563.3268012,0.00044657,120]
[398382090,1765559679787,-1307.60586615,0.00044657,120]
[398382091,1765559679823,-616.22220377,0.00044657,120]
[398382092,1765559679857,-580.27780259,0.00044657,120]
[398382093,1765559679894,-301.287166,0.00044657,120]
[398382094,1765559679930,-392.02040138,0.00044657,120]
[398382095,1765559679965,-630.09491127,0.00044657,120]
[398382096,1765559680008,-589.3640546,0.00044657,30]
[398382097,1765559680047,-511.56364177,0.00044657,120]
[398382098,1765559680084,-504.68667535,0.00044657,120]
[398382099,1765559680123,-665.57097087,0.00044657,120]
[398382100,1765559680162,-796.47304336,0.00044657,120]
[398382101,1765559680202,-667.77408977,0.00044657,120]
[398382102,1765559680241,-535.59,0.00044657,120]
[398382103,1765559680279,-620.99969131,0.00044657,120]
[398382104,1765559680318,-642.41146739,0.00044657,120]
[398382105,1765559680361,-974.87151321,0.00044657,120]
[398382106,1765559680405,-561.58616253,0.00044657,60]
[398382107,1765559680450,-507.82093449,0.00044657,120]
[398382108,1765559680493,-512.42330512,0.00044657,120]
[398382109,1765559680538,-834.92367793,0.00044657,120]
[398382110,1765559680587,-155.64,0.00044749,120]
[398382111,1765559680636,-155.64,0.00044849,120]
[398382112,1765559680676,-3455.12756236,0.000449,30]
[398382113,1765559680714,-1812.172589,0.00044927,120]
[398382114,1765559680754,-1500.0,0.00044944,60]
[398382115,1765559680792,-155.64,0.00044949,120]
[398382116,1765559680828,-211.0,0.0004496,30]
[398382117,1765559680866,-50000.0,0.00045,45]
[398382118,1765559680902,-191.0,0.00045,120]
[398382119,1765559680937,-543.69932243,0.00045,120]
[398382120,1765559680975,-2362.41260063,0.00045,120]
[398382121,1765559681016,-185.13102704,0.00045,30]
[398382122,1765559681061,-1127.0764769,0.00045,32]
[398382123,1765559681109,-907.86166375,0.00045,120]
[398382124,1765559681162,-397.0962414,0.00045,120]
[398382125,1765559681323,-150.0,0.00045,120]
[398382126,1765559681369,-1000.0,0.00045,120]
[398382127,1765559681415,-158.0,0.00045,85]
[398382128,1765559681463,-1007.43138185,0.00045,120]
[398382129,1765559681509,-500.0,0.00045,120]
[398382130,1765559681548,-3067.02496955,0.00045,120]
[398382131,1765559681587,-1728.95541634,0.00045,120]
[398382132,1765559681625,-300.0,0.00045,60]
[398382133,1765559681662,-4946.31855875,0.00045,120]
[398382134,1765559681698,-727.575,0.00045,30]
[398382135,1765559681734,-2000.0,0.00045,60]
[398382136,1765559681770,-223.0,0.00045,120]
[398382137,1765559681807,-2727.0,0.00045,120]
[398382138,1765559681845,-3000.80778228,0.00045,120]
[398382139,1765559681881,-3214.18293429,0.00045,120]
[398382140,1765559681917,-1805.15098896,0.00045,120]
[398382141,1765559681955,-3238.17139092,0.00045,120]
[398382142,1765559681992,-4697.45258281,0.00045,120]
[398382143,1765559682032,-3316.66851774,0.00045,120]
[398382144,1765559682075,-161.0,0.00045,120]
[398382145,1765559682115,-508.0,0.00045,120]
[398382146,1765559682157,-1000.0,0.00045,120]
[398382147,1765559682199,-3030.0,0.00045,120]
[398382148,1765559682241,-1019.80474869,0.00045,120]
[398382149,1765559682280,-320054.71693185,0.00045,30]
[398382150,1765559682319,-2262.7976416,0.00045,120]
[398382151,1765559682360,-50000.0,0.00045,90]
[398382152,1765559682402,-683.233563,0.00045,120]
[398382153,1765559682443,-3999.0,0.00045,120]
[398382154,1765559682480,-155.64,0.00045049,120]
[398382155,1765559682517,-212.73599982,0.00045126,120]
[398382156,1765559682554,-217.21916215,0.00045126,120]
[398382157,1765559682592,-155.64,0.00045149,120]
[398382158,1765559682627,-500.0,0.00045218,60]
[398382159,1765559682664,-155.64,0.00045249,120]
[398382160,1765559682701,-150.0,0.00045253,120]
[398382161,1765559682739,-155.64,0.00045349,120]
[398382162,1765559682776,-155.64,0.00045449,120]
[398382163,1765559682813,-200.0,0.00045477,120]
[398382164,1765559682849,-1100.0,0.00045492,60]
[398382165,1765559682886,-191.0,0.000455,120]
[398382166,1765559682924,-1007.01026929,0.000455,120]
[398382167,1765559682963,-500.0,0.000455,120]
[398382168,1765559683005,-161.0,0.000455,120]
[398382169,1765559683050,-155.64,0.00045549,120]
[398382170,1765559683094,-155.64,0.00045649,120]
[398382171,1765559683133,-1388.81496975,0.000457,120]
[398382172,1765559683175,-155.64,0.00045749,120]
[398382173,1765559683213,-155.64,0.00045849,120]
[398382174,1765559683252,-210.90478129,0.0004589,120]
[398382175,1765559683289,-1672.58,0.000459,120]
[398382176,1765559683334,-155.64,0.00045949,120]
[398382177,1765559683378,-191.0,0.00046,120]
[398382178,1765559683420,-319.83889761,0.00046,120]
[398382179,1765559683461,-3302.38908572,0.00046,120]
[398382180,1765559683504,-1000.0,0.00046,30]
[398382181,1765559683546,-204.65381367,0.00046,30]
[398382182,1765559683588,-2199.67653163,0.00046,120]
[398382183,1765559683628,-444.9165596,0.00046,120]
[398382184,1765559683671,-150.0,0.00046,120]
[398382185,1765559683710,-500.0,0.00046,120]
[398382186,1765559683749,-5552.13461131,0.00046,120]
[398382187,1765559683788,-1351.45914227,0.00046,120]
[398382188,1765559683828,-300.0,0.00046,120]
[398382189,1765559683867,-4063.45096987,0.00046,90]
[398382190,1765559683915,-161.0,0.00046,120]
[398382191,1765559683955,-1550.1253778,0.00046,120]
[398382192,1765559684000,-1000.0,0.00046,120]
[398382193,1765559684042,-29170.96752937,0.00046,30]
[398382194,1765559684086,-207.2,0.00046,30]
[398382195,1765559684128,-1500.0,0.0004604,60]
[398382196,1765559684176,-155.64,0.00046049,120]
[398382197,1765559684223,-155.64,0.00046149,120]
[398382198,1765559684270,-155.64,0.00046249,120]
[398382199,1765559684315,-500.0,0.00046314,60]
[398382200,1765559684361,-602.0,0.0004633,120]
[398382201,1765559684406,-155.64,0.00046349,120]
[398382202,1765559684449,-574.43133867,0.000464,120]
[398382203,1765559684493,-155.64,0.00046449,120]
[398382204,1765559684532,-191.0,0.000465,120]
[398382205,1765559684575,-500.0,0.000465,120]
[398382206,1765559684619,-161.0,0.000465,120]
[398382207,1765559684663,-155.64,0.00046549,120]
[398382208,1765559684701,-1100.0,0.00046588,60]
[398382209,1765559684740,-155.64,0.00046649,120]
[398382210,1765559685035,-155.64,0.00046749,120]
[398382211,1765559685079,-1086.0,0.00046757,120]
[398382212,1765559685122,-1086.0,0.00046757,120]
[398382213,1765559685166,-1086.0,0.00046757,120]
[398382214,1765559685209,-1086.0,0.00046757,120]
[398382215,1765559685254,-1086.0,0.00046757,120]
[398382216,1765559685295,-1086.0,0.00046757,120]
[398382217,1765559685338,-1086.0,0.00046757,120]
[398382218,1765559685380,-1086.0,0.00046757,120]
[398382219,1765559685422,-1086.0,0.00046757,120]
[398382220,1765559685466,-1086.0,0.00046757,120]
[398382221,1765559685506,-1086.0,0.00046757,120]
[398382222,1765559685547,-1086.0,0.00046757,120]
[398382223,1765559685586,-1086.0,0.00046757,120]
[398382224,1765559685624,-1086.0,0.00046757,120]
[398382225,1765559685661,-1086.0,0.00046757,120]
[398382226,1765559685698,-1086.0,0.00046757,120]
[398382227,1765559685735,-1086.0,0.00046757,120]
[398382228,1765559685772,-1086.0,0.00046757,120]
[398382229,1765559685810,-1086.0,0.00046757,120]
[398382230,1765559685847,-1086.0,0.00046757,120]
[398382231,1765559685884,-1086.0,0.00046757,120]
[398382232,1765559685920,-1086.0,0.00046757,120]
[398382233,1765559685957,-1086.0,0.00046757,120]
[398382234,1765559685993,-1086.0,0.00046757,120]
[398382235,1765559686030,-1086.0,0.00046757,120]
[398382236,1765559686067,-1086.0,0.00046757,120]
[398382237,1765559686103,-1086.0,0.00046757,120]
[398382238,1765559686141,-1086.0,0.00046757,120]
[398382239,1765559686181,-1086.0,0.00046757,120]
[398382240,1765559686222,-1086.0,0.00046757,120]
[398382241,1765559686263,-1086.0,0.00046757,120]
[398382242,1765559686303,-1086.0,0.00046757,120]
[398382243,1765559686354,-1086.0,0.00046757,120]
[398382244,1765559686404,-1086.0,0.00046757,120]
[398382245,1765559686452,-1086.0,0.00046757,120]
[398382246,1765559686489,-1086.0,0.00046757,120]
[398382247,1765559686528,-1086.0,0.00046757,120]
[398382248,1765559686567,-1086.0,0.00046757,120]
[398382249,1765559686614,-1367.12447145,0.000468,120]
[398382250,1765559686655,-1231.84153568,0.000468,120]
[398382251,1765559686697,-5121.76645259,0.000468,120]
[398382252,1765559686735,-155.64,0.00046849,120]
[398382253,1765559686770,-1034.0,0.00046856,120]
[398382254,1765559686806,-1034.0,0.00046856,120]
[398382255,1765559686844,-1034.0,0.00046856,120]
[398382256,1765559686881,-1034.0,0.00046856,120]
[398382257,1765559686917,-1034.0,0.00046856,120]
[398382258,1765559686953,-1034.0,0.00046856,120]
[398382259,1765559686992,-1034.0,0.00046856,120]
[398382260,1765559687029,-1034.0,0.00046856,120]
[398382261,1765559687066,-1034.0,0.00046856,120]
[398382262,1765559687104,-1034.0,0.00046856,120]
[398382263,1765559687147,-1034.0,0.00046856,120]
[398382264,1765559687189,-1034.0,0.00046856,120]
[398382265,1765559687232,-2000.0,0.000469,120]
[398382266,1765559687272,-4521.42276182,0.000469,120]
[398382267,1765559687313,-155.64,0.00046949,120]
[398382268,1765559687353,-200.0,0.00046977,120]
[398382269,1765559687393,-211.0,0.0004698,30]
[398382270,1765559687434,-1000.0,0.00046999,120]
[398382271,1765559687471,-191.0,0.00047,120]
[398382272,1765559687525,-616.03417948,0.00047,30]
[398382273,1765559687568,-150.0,0.00047,120]
[398382274,1765559687610,-2500.0,0.00047,120]
[398382275,1765559687651,-500.0,0.00047,120]
[398382276,1765559687769,-204.20677925,0.00047,120]
[398382277,1765559687812,-1000.0,0.00047,120]
[398382278,1765559687855,-500.0,0.00047,120]
[398382279,1765559687905,-500.0,0.00047,120]
[398382280,1765559687949,-161.0,0.00047,120]
[398382281,1765559687998,-1000.0,0.00047,120]
[398382282,1765559688046,-3999.0,0.00047,120]
[398382283,1765559688091,-155.64,0.00047049,120]
[398382284,1765559688137,-1500.0,0.00047136,60]
[398382285,1765559688183,-155.64,0.00047149,120]
[398382286,1765559688231,-155.64,0.00047249,120]
[398382287,1765559688279,-223.86,0.0004726,120]
[398382288,1765559688324,-1437.57109933,0.00047308,120]
[398382289,1765559688369,-212.73599982,0.00047318,120]
[398382290,1765559688418,-217.89253943,0.00047318,120]
[398382291,1765559688464,-213.87733886,0.00047318,120]
[398382292,1765559688510,-214.56969249,0.00047318,120]
[398382293,1765559688556,-213.87733886,0.00047318,120]
[398382294,1765559688601,-217.21916215,0.00047318,120]
[398382295,1765559688646,-155.64,0.00047349,120]
[398382296,1765559688691,-191.0,0.000474,120]
[398382297,1765559688734,-161.0,0.000474,120]
[398382298,1765559688778,-500.0,0.0004741,60]
[398382299,1765559688821,-155.64,0.00047449,120]
[398382300,1765559688862,-500.0,0.000475,120]
[398382301,1765559688913,-155.64,0.00047549,120]
[398382302,1765559688958,-155.69111105,0.00047649,120]
[398382303,1765559689000,-1100.0,0.00047684,60]
[398382304,1765559689042,-7106.75026585,0.00047778,120]
[398382305,1765559689083,-191.0,0.000479,120]
[398382306,1765559689124,-161.0,0.000479,120]
[398382307,1765559689169,-1000.0,0.00047999,120]
[398382308,1765559689213,-1669.55616278,0.00048,120]
[398382309,1765559689256,-504.13070483,0.00048,120]
[398382310,1765559689299,-628.25709434,0.00048,120]
[398382311,1765559689346,-214.01156046,0.00048,120]
[398382312,1765559689390,-519.34090053,0.00048,120]
[398382313,1765559689434,-150.0,0.00048,120]
[398382314,1765559689476,-13857.17497417,0.00048,120]
[398382315,1765559689518,-1017.86907209,0.00048,120]
[398382316,1765559689563,-500.0,0.00048,120]
[398382317,1765559689603,-3150.25859551,0.00048,120]
[398382318,1765559689644,-1885.96943087,0.00048,120]
[398382319,1765559689685,-300.0,0.00048,120]
[398382320,1765559689725,-5425.62243311,0.00048,120]
[398382321,1765559689769,-1540.02858248,0.00048,120]
[398382322,1765559689807,-1550.1253778,0.00048,120]
[398382323,1765559689846,-1000.0,0.00048,120]
[398382324,1765559689884,-2653.09603361,0.000481,120]
[398382325,1765559689923,-1500.0,0.00048232,60]
[398382326,1765559689960,-3833.7101847,0.0004825,120]
[398382327,1765559689998,-1277.6338069,0.0004826,120]
[398382328,1765559690037,-191.0,0.000484,120]
[398382329,1765559690079,-500.0,0.000484,120]
[398382330,1765559690123,-161.0,0.000484,120]
[398382331,1765559690167,-500.0,0.000485,120]
[398382332,1765559690209,-500.0,0.00048506,60]
[398382333,1765559690252,-150.08353501,0.00048646,30]
[398382334,1765559690294,-766.58766269,0.000487,120]
[398382335,1765559690337,-1100.0,0.0004878,60]
[398382336,1765559690382,-7473.87537638,0.000488,120]
[398382337,1765559690426,-738.83642693,0.000488,120]
[398382338,1765559690470,-787.99,0.00048832,120]